bitfinex/quotes_ETHUSD_20230702
["timestamp","ask_amount","ask_price","bid_price","bid_amount"]
[1688268269886,15.7066,1919.9,1919.5,3.0]
[1688268270066,1.31023,1919.8,1919.5,3.0]
[1688268270247,10.41828,1919.7,1919.5,8.20966]
[1688268270453,12.91328,1919.7,1919.5,8.20966]
[1688268271389,7.70414,1919.7,1919.5,13.41935]
[1688268275401,7.70414,1919.7,1919.5,8.20966]
[1688268275596,7.70414,1919.7,1919.5,5.20966]
[1688268281824,7.70414,1919.7,1919.5,10.41935]
[1688268282919,7.70414,1919.7,1919.5,5.20966]
[1688268283104,7.70414,1919.7,1919.5,10.41935]
[1688268285734,7.70414,1919.7,1919.5,5.20966]
[1688268287634,7.70414,1919.7,1919.5,10.41935]
[1688268294963,7.70414,1919.7,1919.4,10.8298255]
[1688268295176,14.376117,1919.7,1919.4,0.4103255]
[1688268295369,14.376117,1919.7,1919.4,3.4103255]
[1688268295522,14.376117,1919.7,1919.4,3.0]
[1688268295726,14.376117,1919.7,1919.4,8.20992]
[1688268297541,14.376117,1919.7,1919.4,13.41988]
[1688268300365,12.91328,1919.7,1919.4,13.41988]
[1688268308182,12.91328,1919.7,1919.4,3.0]
[1688268308369,15.51785,1919.7,1919.3,3.40815184]
[1688268308678,15.51785,1919.7,1919.2,3.0]
[1688268308975,15.51785,1919.7,1919.2,10.89791184]
[1688268308976,5.20974,1919.5,1919.2,10.89791184]
[1688268309496,10.41948,1919.5,1919.2,10.89791184]
[1688268309776,12.93888,1919.5,1919.2,10.89791184]
[1688268310182,7.72914,1919.5,1919.2,16.10841184]
[1688268310350,12.93888,1919.5,1919.2,16.10841184]
[1688268310546,12.93888,1919.5,1919.2,10.89791184]
[1688268310775,12.93888,1919.5,1919.2,11.32350761]
[1688268311482,12.93888,1919.5,1919.2,16.53400761]
[1688268311676,7.72914,1919.5,1919.2,16.53400761]
[1688268312979,7.72914,1919.5,1919.2,19.13925761]
[1688268322975,2.60449,1919.8,1919.3,2.68752184]
[1688268323206,2.5739,1919.8,1919.4,13.02462]
[1688268323376,2.5739,1919.8,1919.4,15.71214184]
[1688268325775,7.78278,1919.8,1919.4,13.10716184]
[1688268326275,2.5739,1919.8,1919.5,2.68752184]
[1688268326520,0.01656827,1920.0,1919.5,2.68752184]
[1688268326828,0.01656827,1920.0,1919.6,5.20931]
[1688268327109,0.01656827,1920.0,1919.7,2.68752184]
[1688268328119,5.22493827,1920.0,1919.7,2.68752184]
[1688268330087,10.43330827,1920.0,1919.7,2.68752184]
[1688268335561,10.43330827,1920.0,1919.7,7.89662184]
[1688268338554,10.43330827,1920.0,1919.7,2.68752184]
[1688268339723,11.98274088,1920.0,1919.7,2.68752184]
[1688268340057,13.85524088,1920.0,1919.7,2.68752184]
[1688268340413,11.98274088,1920.0,1919.7,7.89655184]
[1688268340620,10.43330827,1920.0,1919.7,8.3120292]
[1688268340834,10.41674,1920.0,1919.7,8.3120292]
[1688268343422,10.41674,1920.0,1919.7,3.1029992]
[1688268346152,12.13254,1920.0,1919.7,3.1029992]
[1688268347290,12.13254,1920.0,1919.7,8.3121092]
[1688268349331,12.13254,1920.0,1919.7,3.1029992]
[1688268350132,12.13254,1920.0,1919.7,8.3121392]
[1688268350332,1.7158,1920.0,1919.7,8.3121392]
[1688268351623,6.92426,1920.0,1919.7,8.3121392]
[1688268356423,5.20846,1920.0,1919.7,8.3121392]
[1688268364661,14.7597478,1920.1,1919.7,13.5212792]
[1688268367985,14.7597478,1920.1,1919.7,8.3121392]
[1688268368481,14.7597478,1920.1,1919.7,13.5212792]
[1688268373793,2.4569178,1920.1,1919.7,16.1258492]
[1688268374015,2.4569178,1920.1,1919.7,17.4828492]
[1688268377328,2.4569178,1920.1,1919.7,16.1258492]
[1688268378126,7.6649978,1920.1,1919.7,16.1258492]
[1688268378426,2.4569178,1920.1,1919.7,16.1258492]
[1688268379407,2.4569178,1920.1,1919.7,17.75058891]
[1688268379729,0.0148178,1920.1,1919.9,1.357]
[1688268380046,0.0148178,1920.1,1920.0,7.89585184]
[1688268393651,0.0148178,1920.1,1920.0,8.31953597]
[1688268396552,0.0148178,1920.1,1920.0,3.11120597]
[1688268400070,5.2228778,1920.1,1920.0,3.11120597]
[1688268400555,0.0148178,1920.1,1920.0,3.11120597]
[1688268401288,0.0148178,1920.1,1920.0,8.31953597]
[1688268405171,7.6079178,1920.2,1920.0,8.31953597]
[1688268408360,2.4353,1920.2,1920.0,8.31953597]
[1688268408859,7.64309,1920.2,1920.0,8.31953597]
[1688268409431,2.4353,1920.2,1920.0,8.31953597]
[1688268416464,2.4353,1920.2,1920.0,13.52786597]
[1688268418768,7.6431,1920.2,1920.0,13.52786597]
[1688268420381,12.8509,1920.2,1920.0,3.11120597]
[1688268422879,14.396367,1920.2,1920.0,0.42368413]
[1688268423105,18.357257,1920.2,1919.7,5.20909]
[1688268423392,10.41666,1920.0,1919.7,2.68752184]
[1688268423820,10.41666,1920.0,1919.7,7.89666184]
[1688268423987,12.85186,1920.0,1919.7,7.89666184]
[1688268424756,12.85186,1920.0,1919.7,13.10580184]
[1688268435737,12.85186,1920.0,1919.7,7.89666184]
[1688268436043,17.324171,1920.0,1919.6,8.63571837]
[1688268436210,17.324171,1920.0,1919.6,16.53253021]
[1688268437434,15.45602,1920.0,1919.6,16.53253021]
[1688268453954,15.45602,1920.0,1919.6,11.32324021]
[1688268458577,16.81302,1920.0,1919.6,0.42645837]
[1688268458870,16.81302,1920.0,1919.3,35.59015]
[1688268458871,16.81302,1920.0,1919.4,5.20985]
[1688268459072,13.02229,1919.8,1919.5,2.68752184]
[1688268460073,15.65079,1919.8,1919.5,2.68752184]
[1688268462661,15.65079,1919.8,1919.5,7.89720184]
[1688268464689,15.65079,1919.8,1919.5,2.68752184]
[1688268464871,15.65079,1919.8,1919.5,7.89720184]
[1688268465349,15.65079,1919.8,1919.5,2.68752184]
[1688268466721,17.654314,1919.8,1919.4,3.0]
[1688268467049,17.654314,1919.8,1919.3,3.42196813]
[1688268467050,19.000314,1919.8,1919.3,3.42196813]
[1688268467176,13.02367,1919.6,1919.3,2.68752184]
[1688268467978,15.51047,1919.6,1919.3,2.68752184]
[1688268471242,7.69627,1919.6,1919.3,13.10797184]
[1688268471393,12.90574,1919.6,1919.3,13.10797184]
[1688268472332,12.90574,1919.6,1919.3,7.89774184]
[1688268472528,15.51044,1919.6,1919.3,7.89774184]
[1688268472762,15.51044,1919.6,1919.3,2.68752184]
[1688268477269,15.51044,1919.6,1919.3,7.89771184]
[1688268479886,15.51044,1919.6,1919.3,2.68752184]
[1688268481247,15.51044,1919.6,1919.3,7.89770184]
[1688268482782,15.51044,1919.6,1919.3,2.68752184]
[1688268483390,15.51044,1919.6,1919.3,7.89771184]
[1688268496352,15.51044,1919.6,1919.3,2.68752184]
[1688268497877,15.51044,1919.6,1919.3,7.89769184]
[1688268500385,15.51044,1919.6,1919.4,0.26773971]
[1688268506491,15.51044,1919.6,1919.3,7.89766184]
[1688268508048,15.51044,1919.6,1919.3,7.84766184]
[1688268512981,2.4868,1919.6,1919.3,7.84766184]
[1688268513209,5.20838,1920.0,1919.5,14.38087]
[1688268513489,2.60392,1920.2,1919.6,13.10602184]
[1688268513490,14.71797,1920.1,1919.6,13.10602184]
[1688268513790,16.450158,1920.1,1919.6,13.10602184]
[1688268514314,14.71793,1920.1,1919.6,15.71072184]
[1688268515120,14.71793,1920.1,1919.6,13.10602184]
[1688268515418,17.32196,1920.1,1919.6,13.10602184]
[1688268521530,18.68752827,1920.1,1919.6,2.68752184]
[1688268521735,18.68752827,1920.1,1919.4,5.20977]
[1688268521736,1.732196,1920.0,1919.4,5.20977]
[1688268522044,13.02205,1919.9,1919.5,7.89711184]
[1688268522740,2.6274,1919.8,1919.5,7.89711184]
[1688268522914,5.20914,1919.7,1919.5,7.89711184]
[1688268523106,5.20914,1919.7,1919.5,13.10680184]
[1688268532298,1.777,1919.9,1919.5,13.10680184]
[1688268532514,6.98578,1919.9,1919.5,16.52664184]
[1688268532705,12.19459,1919.9,1919.5,13.92180184]
[1688268533540,12.19459,1919.9,1919.5,13.10680184]
[1688268534407,5.20878,1919.9,1919.5,15.71164184]
[1688268536351,13.02186,1919.9,1919.5,7.89711184]
[1688268536517,16.686274,1919.9,1919.5,7.89711184]
[1688268536851,16.686274,1919.9,1919.5,13.10680184]
[1688268538347,14.86776,1919.9,1919.5,13.10680184]
[1688268538511,12.26346,1919.9,1919.5,15.71164184]
[1688268540814,12.26346,1919.9,1919.5,7.89711184]
[1688268541754,14.86776,1919.9,1919.5,7.89711184]
[1688268542352,14.86776,1919.9,1919.5,13.10680184]
[1688268542717,14.86776,1919.9,1919.5,7.89711184]
[1688268543056,16.87251883,1919.9,1919.5,13.10680184]
[1688268543216,5.20914,1919.7,1919.5,13.10680184]
[1688268546665,12.99906,1919.8,1919.5,13.10680184]
[1688268550444,7.79,1919.8,1919.5,13.10680184]
[1688268551097,5.20872,1919.9,1919.5,15.71164184]
[1688268552697,10.41743,1919.9,1919.5,15.71164184]
[1688268565869,5.20871,1919.9,1919.5,13.10680184]
[1688268566211,14.92671,1920.0,1919.5,16.52664184]
[1688268566881,9.7182,1920.0,1919.6,3.90523049]
[1688268567072,9.7182,1920.0,1919.7,7.89663184]
[1688268571010,4.5097,1920.0,1919.7,15.71034184]
[1688268576286,0.815,1920.4,1919.7,15.71034184]
[1688268576287,0.41585648,1920.6,1919.7,16.79308155]
[1688268576499,4.3238,1920.2,1919.8,4.38509498]
[1688268576688,2.5323,1920.2,1919.9,15.70889184]
[1688268581113,12.94788,1920.2,1919.9,2.68752184]
[1688268581426,17.106934,1920.2,1919.9,2.68752184]
[1688268581742,18.891334,1920.2,1919.9,7.89605184]
[1688268582078,16.287444,1920.2,1919.9,13.10465184]
[1688268582592,11.079654,1920.2,1919.9,13.10465184]
[1688268586217,9.52449,1920.2,1919.9,13.10465184]
[1688268587502,12.12838,1920.2,1919.8,3.0]
[1688268587705,17.33618,1920.2,1919.8,3.0]
[1688268592194,18.15118,1920.2,1919.8,3.0]
[1688268593623,1.815118,1920.1,1919.8,3.0]
[1688268593826,10.41666,1920.0,1919.8,3.0]
[1688268594001,13.10876,1920.0,1919.8,3.0]
[1688268597906,15.71292,1920.0,1919.8,3.0]
[1688268598105,15.71292,1920.0,1919.7,5.61623956]
[1688268600437,13.10876,1920.0,1919.7,10.82537956]
[1688268600639,7.90043,1920.0,1919.7,13.5129014]
[1688268601142,7.90045,1920.0,1919.8,7.89620184]
[1688268602543,7.90045,1920.0,1919.8,13.10507184]
[1688268602937,13.1088,1920.0,1919.8,7.89620184]
[1688268615868,13.1088,1920.0,1919.8,2.68752184]
[1688268624893,14.680084,1920.0,1919.7,0.40723956]
[1688268625202,14.680084,1920.0,1919.7,5.68752184]
[1688268625203,17.284244,1920.0,1919.7,5.68752184]
[1688268625397,17.284244,1920.0,1919.7,3.0]
[1688268625694,17.284244,1920.0,1919.6,0.40958297]
[1688268625898,3.5708244,1919.9,1919.6,3.09710481]
[1688268626109,10.41774,1919.8,1919.7,3.0]
[1688268627662,13.02217,1919.8,1919.7,3.0]
[1688268627893,13.02217,1919.8,1919.6,2.68752184]
[1688268628404,13.02217,1919.8,1919.5,3.0]
[1688268628405,15.51187,1919.8,1919.5,3.0]
[1688268628577,1.551187,1919.7,1919.4,4.35774647]
[1688268628899,10.41882,1919.6,1919.4,7.04526831]
[1688268629204,7.69911,1919.6,1919.4,5.68752184]
[1688268629387,7.69911,1919.6,1919.2,0.54478305]
[1688268629388,13.04008827,1919.6,1919.2,0.54478305]
[1688268629706,2.4897,1919.5,1919.2,3.59287921]
[1688268630002,12.90931,1919.5,1919.2,8.44277489]
[1688268630170,12.90931,1919.5,1919.2,7.89799184]
[1688268630502,12.90931,1919.5,1919.2,13.10849184]
[1688268630667,12.90931,1919.5,1919.2,8.32415377]
[1688268631369,15.51415,1919.5,1919.2,3.11368377]
[1688268631569,15.51415,1919.5,1919.3,3.0]
[1688268633377,12.90931,1919.5,1919.3,3.0]
[1688268637316,12.90931,1919.5,1919.3,8.21022]
[1688268637610,12.90931,1919.5,1919.3,3.0]
[1688268638384,12.90931,1919.5,1919.3,8.21019]
[1688268638993,10.41961,1919.5,1919.3,3.0]
[1688268639200,13.02445,1919.5,1919.3,3.0]
[1688268639918,15.62825,1919.5,1919.3,3.0]
[1688268640599,13.02445,1919.5,1919.3,3.0]
[1688268641008,13.02445,1919.5,1919.2,0.42616193]
[1688268641009,16.85165183,1919.5,1919.2,0.42616193]
[1688268641321,16.85165183,1919.5,1918.8,30.51245314]
[1688268641609,13.0266,1919.2,1918.8,33.06752184]
[1688268641772,10.42208,1919.0,1918.8,2.68752184]
[1688268643588,10.42208,1919.0,1918.9,3.0]
[1688268644407,13.0276,1919.0,1918.9,3.0]
[1688268644731,10.42208,1919.0,1918.9,3.0]
[1688268646312,13.0276,1919.0,1918.9,3.0]
[1688268646475,15.018472,1919.0,1918.8,0.42669523]
[1688268646844,15.018472,1919.0,1918.6,3.0]
[1688268647126,13.0276,1919.0,1918.7,2.68752184]
[1688268647611,13.0276,1919.0,1918.8,3.0]
[1688268648629,13.0276,1919.0,1918.7,2.68752184]
[1688268649386,13.0276,1919.0,1918.6,0.42579399]
[1688268649592,13.0276,1919.0,1918.6,3.11331583]
[1688268649820,15.099972,1919.0,1918.4,33.06818757]
[1688268650023,1.8813,1918.9,1918.5,2.68752184]
[1688268650190,13.02908,1918.8,1918.6,3.0]
[1688268650585,12.88228,1918.8,1918.6,3.0]
[1688268650813,15.48807,1918.8,1918.6,3.0]
[1688268652302,12.88228,1918.8,1918.6,3.0]
[1688268652787,12.88228,1918.8,1918.6,8.2121]
[1688268655739,0.01656827,1918.7,1918.4,5.21258]
[1688268655888,0.01656827,1918.7,1918.3,0.42335545]
[1688268655889,10.42426,1918.6,1918.3,0.42335545]
[1688268656084,13.03032,1918.6,1918.3,3.11087729]
[1688268656303,13.03032,1918.6,1918.3,2.68752184]
[1688268656794,4.2203,1918.8,1918.4,2.68752184]
[1688268656993,14.64377,1918.8,1918.5,10.4247]
[1688268657199,17.24956,1918.8,1918.5,7.89987184]
[1688268658401,2.459,1918.8,1918.6,2.68752184]
[1688268658715,5.21115,1919.0,1918.6,7.89949184]
[1688268658891,12.98916,1919.0,1918.6,7.89949184]
[1688268660991,12.98916,1919.0,1918.6,13.11162184]
[1688268661422,15.59468,1919.0,1918.6,13.11162184]
[1688268661620,15.59468,1919.0,1918.6,7.89949184]
[1688268664810,12.98916,1919.0,1918.6,7.89949184]
[1688268665220,14.548618,1919.0,1918.6,5.21197]
[1688268665419,14.548618,1919.0,1918.4,3.0]
[1688268665420,0.815,1918.9,1918.4,3.0]
[1688268665739,13.0293,1918.8,1918.4,2.68752184]
[1688268665929,10.42426,1918.6,1918.4,2.68752184]
[1688268666121,10.42426,1918.6,1918.5,3.0]
[1688268668035,13.03032,1918.6,1918.4,0.4226231]
[1688268668345,13.03032,1918.6,1918.2,14.2372]
[1688268668515,13.03032,1918.6,1918.2,16.92472184]
[1688268668913,13.03032,1918.6,1918.2,17.3399753]
[1688268671115,5.21213,1918.6,1918.2,21.9465853]
[1688268671312,12.06068,1918.7,1918.3,3.50252184]
[1688268671313,4.2427,1918.7,1918.3,3.50252184]
[1688268671544,2.4346,1918.7,1918.4,3.0]
[1688268671752,5.21169,1918.8,1918.5,13.11232184]
[1688268671962,12.95389,1918.8,1918.5,13.11232184]
[1688268672520,2.6,1918.6,1918.5,13.11232184]
[1688268673561,2.6,1918.6,1918.5,27.50666155]
[1688268673740,2.05664904,1918.6,1918.5,28.89224649]
[1688268673917,2.05664904,1918.6,1918.5,30.2506236]
[1688268674117,2.05664904,1918.6,1918.5,25.0382236]
[1688268674741,2.05664904,1918.6,1918.5,25.03823277]
[1688268681131,2.05664904,1918.6,1918.5,31.07201582]
[1688268681271,1.09075782,1918.6,1918.5,36.55680734]
[1688268681772,1.09075782,1918.6,1918.5,36.97688741]
[1688268685540,1.09075782,1918.6,1918.5,43.32699173]
[1688268685953,1.09075782,1918.6,1918.5,42.50981716]
[1688268686907,7.78774,1919.3,1918.5,42.50981716]
[1688268687113,7.78774,1919.3,1918.9,0.815]
[1688268687341,9.521386,1919.3,1919.0,13.10950184]
[1688268689233,7.78774,1919.3,1919.0,13.10950184]
[1688268694059,2.5774,1919.3,1919.0,15.71502184]
[1688268694361,6.9437,1919.4,1919.2,0.808]
[1688268694362,1.7336,1919.4,1919.2,0.808]
[1688268694674,1.7336,1919.4,1919.3,13.10798184]
[1688268695231,2.6188,1919.5,1919.3,13.10798184]
[1688268695439,14.13824,1919.5,1919.3,7.89775184]
[1688268696261,14.13824,1919.5,1919.3,2.68752184]
[1688268698222,18.342764,1919.5,1919.1,3.815]
[1688268698438,18.342764,1919.5,1919.0,0.40816117]
[1688268698439,19.157764,1919.5,1919.0,0.40816117]
[1688268698828,19.157764,1919.5,1918.8,5.811]
[1688268699158,3.80974467,1919.4,1918.9,2.68752184]
[1688268699331,13.0259,1919.3,1919.0,3.0]
[1688268699925,13.0259,1919.3,1918.8,3.0]
[1688268700130,4.2351,1919.2,1918.8,6.10500909]
[1688268700352,10.42166,1919.1,1918.8,6.10500909]
[1688268701237,10.42166,1919.1,1918.8,11.31656909]
[1688268702437,10.42166,1919.1,1918.8,16.52815909]
[1688268702641,12.147864,1919.1,1918.8,16.52815909]
[1688268704364,10.42166,1919.1,1918.8,16.52815909]
[1688268705732,11.52166,1919.1,1918.8,16.52815909]
[1688268706233,6.31083,1919.1,1918.8,16.52815909]
[1688268706434,6.31083,1919.1,1918.8,19.13394909]
[1688268707570,1.1,1919.1,1919.0,5.21104]
[1688268709497,6.31077,1919.1,1919.0,5.21104]
[1688268713779,6.31077,1919.1,1918.9,13.10992184]
[1688268714299,13.097188,1919.1,1918.9,7.89871184]
[1688268720184,11.52154,1919.1,1918.9,7.89871184]
[1688268722446,11.52154,1919.1,1918.9,2.68752184]
[1688268722656,14.12692,1919.1,1918.8,3.41748725]
[1688268722890,14.12692,1919.1,1918.8,0.41748725]
[1688268723184,14.12692,1919.1,1918.6,4.90427339]
[1688268723185,11.834772,1919.0,1918.9,3.0]
[1688268723382,14.472272,1919.0,1918.6,4.90427339]
[1688268723557,7.7069,1918.9,1918.7,0.90561845]
[1688268723766,12.9183,1918.9,1918.7,3.90561845]
[1688268723963,12.9183,1918.9,1918.7,3.0]
[1688268724797,12.9183,1918.9,1918.7,8.21185]
[1688268726700,7.7069,1918.9,1918.7,13.42371]
[1688268726912,2.4955,1918.9,1918.7,13.42371]
[1688268731383,2.4955,1918.9,1918.7,8.21185]
[1688268731384,7.70685,1918.9,1918.7,8.21185]
[1688268733297,7.70685,1918.9,1918.7,13.42371]
[1688268734098,7.70685,1918.9,1918.7,8.21185]
[1688268735263,12.9182,1918.9,1918.7,8.21185]
[1688268735814,7.70685,1918.9,1918.7,13.42371]
[1688268736008,7.70685,1918.9,1918.7,8.21185]
[1688268736639,7.70685,1918.9,1918.7,8.21181]
[1688268738129,7.70685,1918.9,1918.7,13.42367]
[1688268738697,7.70685,1918.9,1918.7,3.0]
[1688268740324,12.91816,1918.9,1918.7,3.0]
[1688268741126,12.91816,1918.9,1918.7,8.21185]
[1688268742235,12.91816,1918.9,1918.7,3.0]
[1688268744857,12.91816,1918.9,1918.6,8.63028859]
[1688268745019,12.91816,1918.9,1918.7,0.90562863]
[1688268747140,12.91816,1918.9,1918.6,13.84233859]
[1688268747661,12.91816,1918.9,1918.7,0.90563842]
[1688268747858,12.91816,1918.9,1918.7,6.11748842]
[1688268748161,12.91816,1918.9,1918.7,5.21185]
[1688268748666,7.70681,1918.9,1918.6,13.84219859]
[1688268748884,7.70681,1918.9,1918.7,0.90563347]
[1688268749021,12.91812,1918.9,1918.7,6.11745347]
[1688268749222,12.91812,1918.9,1918.7,5.21182]
[1688268750128,7.70681,1918.9,1918.6,8.63014859]
[1688268750334,12.91812,1918.9,1918.6,8.63014859]
[1688268752582,7.70681,1918.9,1918.6,8.63014859]
[1688268753387,12.91812,1918.9,1918.6,13.84227859]
[1688268754484,12.91812,1918.9,1918.6,8.63014859]
[1688268755944,12.91812,1918.9,1918.6,13.84227859]
[1688268757497,12.91812,1918.9,1918.6,8.63014859]
[1688268758507,12.91812,1918.9,1918.6,13.84227859]
[1688268762509,12.91812,1918.9,1918.6,8.63014859]
[1688268762808,12.91812,1918.9,1918.6,13.84227859]
[1688268764716,12.91812,1918.9,1918.6,8.63014859]
[1688268765719,12.91812,1918.9,1918.7,0.90565461]
[1688268766215,2.4955,1918.9,1918.7,0.90565461]
[1688268766386,7.70681,1918.9,1918.7,0.90565461]
[1688268766710,12.91812,1918.9,1918.7,0.90565461]
[1688268767413,12.91812,1918.9,1918.6,13.84218859]
[1688268770514,11.53828827,1919.1,1918.7,3.86091849]
[1688268770718,5.21114,1919.0,1918.8,5.21153]
[1688268771611,10.42228,1919.0,1918.8,5.21153]
[1688268778229,10.42228,1919.0,1918.7,36.82466155]
[1688268779329,10.42228,1919.0,1918.7,31.61294155]
[1688268782329,10.42228,1919.0,1918.7,31.34520184]
[1688268784927,10.42228,1919.0,1918.7,23.446]
[1688268785092,14.88276383,1919.0,1918.7,23.446]
[1688268802538,13.0278,1919.0,1918.7,23.446]
[1688268830132,13.0278,1919.0,1918.7,28.65782]
[1688268830906,13.0278,1919.0,1918.7,23.446]
[1688268831106,18.5168,1919.0,1918.7,23.446]
[1688268836408,10.42228,1919.0,1918.7,23.446]
[1688268836713,7.43526483,1919.0,1918.7,23.446]
[1688268837027,12.64630483,1919.0,1918.7,28.65785]
[1688268837235,12.64630483,1919.0,1918.7,23.446]
[1688268837665,15.25182483,1919.0,1918.7,23.446]
[1688268847963,5.21104,1919.0,1918.7,33.8697]
[1688268848156,10.42208,1919.0,1918.7,28.65784]
[1688268848353,13.0276,1919.0,1918.7,28.65784]
[1688268848622,13.0276,1919.0,1918.7,33.8697]
[1688268848751,6.31093,1919.1,1918.7,37.28363]
[1688268848949,1.1,1919.1,1918.9,0.808]
[1688268849254,1.1,1919.1,1919.0,11.23008]
[1688268849489,1.1,1919.1,1919.0,10.42208]
[1688268850251,1.1,1919.1,1919.0,13.10960184]
[1688268850666,1.1,1919.1,1919.0,7.89856184]
[1688268850890,6.31077,1919.1,1919.0,2.68752184]
[1688268851075,1.1,1919.1,1919.0,2.68752184]
[1688268851257,1.1,1919.1,1919.0,7.89856184]
[1688268852523,1.1,1919.1,1919.0,2.68752184]
[1688268852826,6.31077,1919.1,1919.0,2.68752184]
[1688268854320,1.1,1919.1,1919.0,2.68752184]
[1688268854625,6.31077,1919.1,1919.0,7.89856184]
[1688268854933,6.31077,1919.1,1919.0,2.68752184]
[1688268856397,6.31077,1919.1,1919.0,8.71356184]
[1688268856398,1.1,1919.1,1919.0,8.71356184]
[1688268856783,1.1,1919.1,1919.0,13.92460184]
[1688268857825,1.1,1919.1,1919.0,37.37060184]
[1688268859013,1.1,1919.1,1919.0,32.15956184]
[1688268862123,1.1,1919.1,1919.0,26.94852184]
[1688268862326,1.1,1919.1,1919.0,26.13352184]
[1688268863315,6.31077,1919.1,1919.0,26.13352184]
[1688268870787,6.31077,1919.1,1919.0,23.446]
[1688268871093,11.52154,1919.1,1919.0,23.446]
[1688268878913,6.31077,1919.1,1919.0,23.446]
[1688268880402,11.52154,1919.1,1919.0,23.446]
[1688268884389,13.381001,1919.1,1919.0,23.446]
[1688268885292,6.31077,1919.1,1919.0,23.446]
[1688268885820,6.31077,1919.1,1919.0,28.65704]
[1688268886208,6.31077,1919.1,1919.0,23.446]
[1688268887456,6.21077,1919.1,1919.0,23.446]
[1688268889448,11.42154,1919.1,1919.0,23.446]
[1688268890341,6.21077,1919.1,1919.0,23.446]
[1688268891709,5.21077,1919.1,1919.0,23.446]
[1688268896142,5.21077,1919.1,1919.0,28.65704]
[1688268898461,5.21077,1919.1,1919.0,23.446]
[1688268899252,2.6745,1919.2,1919.0,28.65704]
[1688268899474,7.88506,1919.2,1919.0,28.65704]
[1688268900452,13.09562,1919.2,1919.0,28.65704]
[1688268902329,7.88506,1919.2,1919.0,28.65704]
[1688268902672,5.20952,1919.6,1919.0,39.16112184]
[1688268902876,5.20952,1919.6,1919.0,39.97612184]
[1688268902877,1.0,1919.3,1919.0,39.97612184]
[1688268903162,1.0,1919.3,1919.2,5.2105]
[1688268903368,6.21026,1919.3,1919.2,5.2105]
[1688268903773,6.21026,1919.3,1919.1,13.10884184]
[1688268904929,6.06026,1919.3,1919.1,13.10884184]
[1688268907089,6.06026,1919.3,1919.1,7.89817184]
[1688268907387,11.27052,1919.3,1919.1,7.89817184]
[1688268907533,11.27052,1919.3,1919.0,23.446]
[1688268907534,13.87563,1919.3,1919.0,23.446]
[1688268908054,15.65123,1919.3,1919.0,23.446]
[1688268908972,17.725101,1919.3,1919.0,23.446]
[1688268910253,15.65123,1919.3,1919.0,23.446]
[1688268912391,15.65123,1919.3,1919.0,28.65703]
[1688268914456,15.65123,1919.3,1919.0,33.86807]
[1688268914656,13.04612,1919.3,1919.0,33.86807]
[1688268914856,13.04612,1919.3,1919.0,28.65703]
[1688268915180,15.65123,1919.3,1919.0,28.65703]
[1688268915384,13.04612,1919.3,1919.0,28.65703]
[1688268915590,15.65123,1919.3,1919.0,28.65703]
[1688268916255,14.80123,1919.3,1919.0,28.65703]
[1688268916459,14.80123,1919.3,1919.0,23.446]
[1688268916768,14.80123,1919.3,1919.0,28.65704]
[1688268916769,1.480123,1919.2,1919.0,28.65704]
[1688268916969,10.42123,1919.2,1919.0,28.65704]
[1688268917517,15.66248,1919.2,1919.0,23.446]
[1688268917810,16.47748,1919.2,1919.0,23.446]
[1688268922227,15.66248,1919.2,1919.0,23.446]
[1688268922726,1.566248,1919.1,1919.0,23.446]
[1688268922864,15.408168,1919.1,1919.0,23.446]
[1688268925290,16.208168,1919.1,1919.0,23.446]
[1688268925499,21.697168,1919.1,1919.0,23.446]
[1688268927624,13.602788,1919.1,1919.0,23.446]
[1688268928191,16.208168,1919.1,1919.0,23.446]
[1688268932202,15.393168,1919.1,1919.0,23.446]
[1688268932704,12.787788,1919.1,1919.0,23.446]
[1688268932904,11.22154,1919.1,1919.0,23.446]
[1688268933639,13.82692,1919.1,1919.0,23.446]
[1688268947158,19.31592,1919.1,1919.0,23.446]
[1688268951152,28.50921184,1919.1,1919.0,23.446]
[1688268952156,27.69421184,1919.1,1919.0,23.446]
[1688268952314,31.07091985,1919.1,1919.0,23.446]
[1688268953222,25.86014985,1919.1,1919.0,23.446]
[1688268960124,26.67514985,1919.1,1919.0,23.446]
[1688268963757,27.17514985,1919.1,1919.0,15.17382684]
[1688268964079,30.17514985,1919.1,1919.0,1.10172828]
[1688268966360,30.17514985,1919.1,1918.3,1.5928]
[1688268966674,18.51945,1918.6,1918.3,1.5928]
[1688268966842,18.51945,1918.6,1918.1,4.23684583]
[1688268967041,21.01425,1918.6,1918.1,3.0]
[1688268967283,23.73163,1918.6,1918.0,2.4288]
[1688268967643,23.73163,1918.6,1918.0,1.6138]
[1688268967762,10.356963,1918.5,1918.0,1.6138]
[1688268967969,15.63837,1918.4,1918.0,1.6138]
[1688268968788,13.03197,1918.4,1918.0,1.6138]
[1688268970301,13.04851827,1918.4,1918.0,1.6138]
[1688268970467,21.22504011,1918.4,1918.0,1.6138]
[1688268970674,5.489,1918.2,1918.0,1.6138]
[1688268970986,13.03372,1918.1,1917.7,0.815]
[1688268971290,13.05028827,1918.1,1917.7,6.02954]
[1688268971592,13.05028827,1918.1,1917.7,6.02955]
[1688268971773,13.05028827,1918.1,1917.7,0.815]
[1688268972455,15.1648871,1918.1,1917.7,0.815]
[1688268972655,15.1648871,1918.1,1917.6,2.90454716]
[1688268973090,15.1648871,1918.1,1917.7,0.815]
[1688268973595,15.1648871,1918.1,1917.7,6.02957]
[1688268974008,15.1648871,1918.1,1917.7,0.815]
[1688268974707,13.05028827,1918.1,1917.9,0.808]
[1688268975974,13.05028827,1918.1,1917.8,0.808]
[1688268976174,13.05028827,1918.1,1917.7,0.815]
[1688268977108,13.05028827,1918.1,1917.8,0.815]
[1688268981010,10.42698,1918.1,1918.0,0.814]
[1688268982224,10.42698,1918.1,1917.9,0.815]
[1688268983905,5.21281,1918.4,1918.0,3.49852184]